[Event "Summer Prague Open-A 2024"]
[Site "Prague"]
[Date "2024.08.04"]
[Round "4.17"]
[White "Yun, Hungi"]
[Black "Eret, Matous"]
[Result "0-1"]
[Annotator "RC"]
[ECO "C61"]
[WhiteElo "1950"]
[BlackElo "2316"]
[PlyCount "82"]
[EventDate "2024.08.02"]
[EventType "swiss"]
[EventCountry "CZE"]
[SourceTitle "playchess.com"]
[Source "ChessBase"]
[SourceQuality "1"]
[TimeControl "40/5400+30:1800+30"]

1. e4 {[%emt 0:00:32]} e5 {[%emt 0:00:36]} 2. Nf3 {[%emt 0:00:48]} Nc6 {[%emt 0:00:04]} 3. Bb5 {[%emt 0:00:11]} Nd4 {[%emt 0:00:05]} 4. Nxd4 {[%emt 0:03:06]} exd4 {[%emt 0:00:28]} 5. O-O {[%emt 0:00:57]} Bc5 {[%emt 0:02:08]} 6. d3 {[%emt 0:01:55]} c6 {[%emt 0:03:16]} 7. Bc4 {[%emt 0:02:45]} d5 {[%emt 0:04:35]} 8. exd5 {[%emt 0:00:52]} cxd5 {[%emt 0:01:34]} 9. Bb5+ {[%emt 0:10:14]} Kf8 {[%emt 0:00:26]} 10. Re1 {[%emt 0:02:02]} Be6 {[%emt 0:02:00]} 11. Ba4 {[%emt 0:03:23]} Ne7 {[%emt 0:04:50]} 12. Nd2 {[%emt 0:07:09]} Nf5 {[%emt 0:02:01]} 13. Nf3 {[%emt 0:06:59]} h6 {[%emt 0:05:20]} 14. c3 {[%emt 0:08:04]} g5 {[%emt 0:05:38]} 15. cxd4 {[%emt 0:10:20]} Nxd4 {[%emt 0:00:17]} 16. b4 {[%emt 0:02:22]} Bb6 {[%emt 0:04:27]} 17. Bb2 {[%emt 0:01:24]} Qf6 {[%emt 0:00:23]} 18. Ne5 {[%emt 0:00:49]} Rd8 {[%emt 0:10:04]} 19. Rc1 {[%emt 0:02:10]} Kg7 {[%emt 0:06:37]} 20. Qd2 {[%emt 0:06:15]} Rc8 {[%emt 0:01:29]} 21. Bc3 {[%emt 0:06:25]} Rc7 {[%emt 0:03:52]} 22. Qb2 {[%emt 0:11:56]} Rhc8 {[%emt 0:00:36]} 23. Kh1 {[%emt 0:00:27]} Kh7 {[%emt 0:06:11]} 24. f3 {[%emt 0:03:42]} Qf5 {[%emt 0:02:28]} 25. Bd2 {[%emt 0:07:03]} h5 {[%emt 0:03:06]} 26. Rxc7 {[%emt 0:00:25]} Rxc7 {[%emt 0:00:11]} 27. Bc3 {[%emt 0:01:09]} f6 {[%emt 0:04:00]} 28. Bxd4 {[%emt 0:00:18]} Bxd4 {[%emt 0:00:16]} 29. Qxd4 {[%emt 0:00:01]} fxe5 {[%emt 0:00:09]} 30. Qxa7 {[%emt 0:00:33]} Qxd3 {[%emt 0:00:45]} 31. Qb6 {[%emt 0:00:30]} Qc3 {[%emt 0:00:12]} 32. Rd1 {[%emt 0:00:28]} Bf7 {[%emt 0:01:57]} 33. Qf6 {[%emt 0:00:15]} Qe3 {[%emt 0:02:52]} 34. Bc2+ {[%emt 0:00:48]} e4 {[%emt 0:01:48]} 35. Bb1 {[%emt 0:00:54]} Bg6 {[%emt 0:01:01]} 36. Qd6 {[%emt 0:00:42]} Rc1 {[%emt 0:01:01]} 37. Qe7+ {[%emt 0:00:13]} Kg8 {[%emt 0:00:20]} 38. Qd8+ {[%emt 0:00:34]} Kg7 {[%emt 0:00:28]} 39. Qe7+ {[%emt 0:00:13]} Bf7 {[%emt 0:00:17]} 40. Qe5+ {[%emt 0:01:02]} Kg8 {[%emt 0:00:08]} 41. Qb8+ {[%emt 0:30:34]} Kh7 {[%emt 0:30:06]} 0-1

[Event "Summer Prague Open-A 2024"]
[Site "Prague"]
[Date "2024.08.04"]
[Round "4.18"]
[White "Mirimanian, Hayk"]
[Black "Cichon, Jakub"]
[Result "1/2-1/2"]
[Annotator "RC"]
[ECO "C55"]
[WhiteElo "2290"]
[BlackElo "1979"]
[PlyCount "105"]
[EventDate "2024.08.02"]
[EventType "swiss"]
[EventCountry "CZE"]
[SourceTitle "playchess.com"]
[Source "ChessBase"]
[SourceQuality "1"]
[TimeControl "40/5400+30:1800+30"]

1. e4 {[%emt 0:00:03]} e5 {[%emt 0:05:05]} 2. Nf3 {[%emt 0:00:20]} Nc6 {[%emt 0:00:53]} 3. Bc4 {[%emt 0:00:35]} Nf6 {[%emt 0:00:47]} 4. d3 {[%emt 0:00:35]} Be7 {[%emt 0:00:30]} 5. O-O {[%emt 0:00:17]} O-O {[%emt 0:00:11]} 6. a4 {[%emt 0:00:43]} d6 {[%emt 0:00:09]} 7. a5 {[%emt 0:00:58]} a6 {[%emt 0:00:06]} 8. c3 {[%emt 0:00:21]} Kh8 {[%emt 0:00:32]} 9. Qb3 {[%emt 0:01:16]} Qe8 {[%emt 0:00:14]} 10. Ng5 {[%emt 0:12:45]} Nd8 {[%emt 0:00:19]} 11. f4 {[%emt 0:00:26]} exf4 {[%emt 0:00:49]} 12. Bxf4 {[%emt 0:00:52]} Nh5 {[%emt 0:00:35]} 13. Be3 {[%emt 0:02:19]} f5 {[%emt 0:02:05]} 14. exf5 {[%emt 0:23:11]} Bxg5 {[%emt 0:00:10]} 15. Bxg5 {[%emt 0:00:44]} Rxf5 {[%emt 0:00:10]} 16. Rxf5 {[%emt 0:04:03]} Bxf5 {[%emt 0:00:08]} 17. Nd2 {[%emt 0:07:46]} h6 {[%emt 0:04:44]} 18. Bxd8 {[%emt 0:00:29]} Qe3+ {[%emt 0:01:20]} 19. Kh1 {[%emt 0:00:20]} Rxd8 {[%emt 0:13:04]} 20. Nf1 {[%emt 0:01:47]} Qf2 {[%emt 0:08:35]} 21. Qxb7 {[%emt 0:03:44]} Nf4 {[%emt 0:14:47]} 22. Qf3 {[%emt 0:03:47]} Qxf3 {[%emt 0:01:09]} 23. gxf3 {[%emt 0:00:07]} Bxd3 {[%emt 0:04:04]} 24. Bxd3 {[%emt 0:12:54]} Nxd3 {[%emt 0:00:06]} 25. b4 {[%emt 0:02:22]} c5 {[%emt 0:00:14]} 26. bxc5 {[%emt 0:01:23]} dxc5 {[%emt 0:01:38]} 27. Rb1 {[%emt 0:10:56]} Nf4 {[%emt 0:03:08]} 28. Rb6 {[%emt 0:03:38]} Rd3 {[%emt 0:07:22]} 29. Rxa6 {[%emt 0:01:48]} Rxf3 {[%emt 0:02:59]} 30. Kg1 {[%emt 0:00:01]} Rxc3 {[%emt 0:00:35]} 31. Rc6 {[%emt 0:00:58]} Nd3 {[%emt 0:02:02]} 32. a6 {[%emt 0:00:59]} Ra3 {[%emt 0:00:13]} 33. Ng3 {[%emt 0:00:33]} Nb4 {[%emt 0:06:49]} 34. Rxc5 {[%emt 0:00:22]} Rxa6 {[%emt 0:00:25]} 35. h4 {[%emt 0:02:25]} Rg6 {[%emt 0:01:31]} 36. Kh2 {[%emt 0:00:15]} Nd3 {[%emt 0:01:48]} 37. Rf5 {[%emt 0:00:38]} Kg8 {[%emt 0:04:54]} 38. Rd5 {[%emt 0:02:01]} Nf2 {[%emt 0:04:09]} 39. Rf5 {[%emt 0:00:36]} Ng4+ {[%emt 0:03:12]} 40. Kh3 {[%emt 0:00:17]} Nf6 {[%emt 0:03:02]} 41. Ra5 {[%emt 0:03:32]} Kh7 {[%emt 0:01:59]} 42. Rf5 {[%emt 0:02:04]} Nd7 {[%emt 0:01:11]} 43. Rd5 {[%emt 0:00:47]} Nf8 {[%emt 0:00:19]} 44. Rf5 {[%emt 0:01:07]} Ne6 {[%emt 0:00:23]} 45. Ne2 {[%emt 0:03:19]} Rf6 {[%emt 0:02:09]} 46. Rxf6 {[%emt 0:03:08]} gxf6 {[%emt 0:00:05]} 47. Kg4 {[%emt 0:00:46]} Kg6 {[%emt 0:00:25]} 48. h5+ {[%emt 0:00:11]} Kf7 {[%emt 0:00:10]} 49. Ng3 {[%emt 0:00:29]} Ng7 {[%emt 0:01:15]} 50. Nf5 {[%emt 0:00:15]} Nxh5 {[%emt 0:01:46]} 51. Kxh5 {[%emt 0:00:12]} Ke6 {[%emt 0:00:07]} 52. Nxh6 {[%emt 0:00:05]} f5 {[%emt 0:00:06]} 53. Nxf5 {[%emt 0:00:06]} 1/2-1/2

[Event "Summer Prague Open-A 2024"]
[Site "Prague"]
[Date "2024.08.04"]
[Round "4.19"]
[White "Camarena Jimenez, Rufino"]
[Black "Halafov, Ilgar"]
[Result "1-0"]
[Annotator "RC"]
[ECO "E92"]
[WhiteElo "2279"]
[BlackElo "1975"]
[PlyCount "101"]
[EventDate "2024.08.02"]
[EventType "swiss"]
[EventCountry "CZE"]
[SourceTitle "playchess.com"]
[Source "ChessBase"]
[SourceQuality "1"]
[TimeControl "40/5400+30:1800+30"]

1. d4 {[%emt 0:06:52]} Nf6 {[%emt 0:00:07]} 2. c4 {[%emt 0:02:55]} g6 {[%emt 0:00:07]} 3. Nc3 {[%emt 0:00:02]} Bg7 {[%emt 0:00:09]} 4. e4 {[%emt 0:00:08]} d6 {[%emt 0:00:06]} 5. Nf3 {[%emt 0:00:19]} O-O {[%emt 0:00:18]} 6. Be2 {[%emt 0:00:06]} e5 {[%emt 0:01:00]} 7. d5 {[%emt 0:00:10]} Na6 {[%emt 0:04:49]} 8. Bg5 {[%emt 0:00:44]} h6 {[%emt 0:00:45]} 9. Bh4 {[%emt 0:00:11]} Qe8 {[%emt 0:15:59]} 10. Nd2 {[%emt 0:00:37]} Nh7 {[%emt 0:04:03]} 11. Rb1 {[%emt 0:02:50]} c5 {[%emt 0:04:29]} 12. dxc6 {[%emt 0:00:51]} bxc6 {[%emt 0:01:30]} 13. b4 {[%emt 0:00:17]} f5 {[%emt 0:05:05]} 14. f3 {[%emt 0:00:35]} Nc7 {[%emt 0:05:28]} 15. Nb3 {[%emt 0:02:38]} Qd7 {[%emt 0:09:11]} 16. b5 {[%emt 0:05:20]} Nf6 {[%emt 0:19:11]} 17. O-O {[%emt 0:15:48]} c5 {[%emt 0:02:53]} 18. Nd5 {[%emt 0:03:09]} Ncxd5 {[%emt 0:02:37]} 19. cxd5 {[%emt 0:00:46]} g5 {[%emt 0:00:31]} 20. Be1 {[%emt 0:09:10]} fxe4 {[%emt 0:00:27]} 21. fxe4 {[%emt 0:00:16]} Nxe4 {[%emt 0:00:33]} 22. Rxf8+ {[%emt 0:00:12]} Kxf8 {[%emt 0:01:24]} 23. Na5 {[%emt 0:02:07]} Nf6 {[%emt 0:02:14]} 24. Nc6 {[%emt 0:02:46]} Qf7 {[%emt 0:00:20]} 25. Rb3 {[%emt 0:04:11]} Kg8 {[%emt 0:04:11]} 26. Ra3 {[%emt 0:03:22]} Qb7 {[%emt 0:04:03]} 27. Ra6 {[%emt 0:09:46]} Kh8 {[%emt 0:03:40]} 28. Bc4 {[%emt 0:12:01]} Bf5 {[%emt 0:00:54]} 29. Qa4 {[%emt 0:00:57]} Be4 {[%emt 0:01:03]} 30. Rxa7 {[%emt 0:01:15]} Rxa7 {[%emt 0:00:17]} 31. Qxa7 {[%emt 0:00:10]} Qxa7 {[%emt 0:00:41]} 32. Nxa7 {[%emt 0:00:11]} Nxd5 {[%emt 0:02:18]} 33. Nc8 {[%emt 0:01:47]} Bf8 {[%emt 0:00:28]} 34. b6 {[%emt 0:05:27]} Nf6 {[%emt 0:01:54]} 35. Be6 {[%emt 0:00:21]} Bb7 {[%emt 0:00:30]} 36. Na7 {[%emt 0:03:06]} d5 {[%emt 0:02:12]} 37. Bc8 {[%emt 0:02:40]} Bxc8 {[%emt 0:02:11]} 38. Nxc8 {[%emt 0:00:03]} Nd7 {[%emt 0:00:22]} 39. b7 {[%emt 0:02:42]} c4 {[%emt 0:01:05]} 40. Bg3 {[%emt 0:01:35]} e4 {[%emt 0:00:48]} 41. Kf1 {[%emt 0:20:39]} Bc5 {[%emt 0:06:05]} 42. b8=Q {[%emt 0:01:15]} Nxb8 {[%emt 0:00:10]} 43. Bxb8 {[%emt 0:00:05]} e3 {[%emt 0:20:53]} 44. Bd6 {[%emt 0:00:41]} Bxd6 {[%emt 0:00:35]} 45. Nxd6 {[%emt 0:00:08]} c3 {[%emt 0:00:08]} 46. Nf7+ {[%emt 0:00:10]} Kg7 {[%emt 0:00:45]} 47. Ne5 {[%emt 0:00:03]} d4 {[%emt 0:03:12]} 48. Ke2 {[%emt 0:01:28]} Kf6 {[%emt 0:01:17]} 49. Nd3 {[%emt 0:00:07]} Ke6 {[%emt 0:00:42]} 50. Nc1 {[%emt 0:00:29]} Kd5 {[%emt 0:00:37]} 51. Kd3 1-0

[Event "Summer Prague Open-A 2024"]
[Site "Prague"]
[Date "2024.08.04"]
[Round "4.20"]
[White "Schmitz, Thorsten"]
[Black "Heron, Andrew"]
[Result "1-0"]
[Annotator "RC"]
[ECO "B90"]
[WhiteElo "2218"]
[BlackElo "1973"]
[PlyCount "73"]
[EventDate "2024.08.02"]
[EventType "swiss"]
[EventCountry "CZE"]
[SourceTitle "playchess.com"]
[Source "ChessBase"]
[SourceQuality "1"]
[TimeControl "40/5400+30:1800+30"]

1. e4 {[%emt 0:00:04]} c5 {[%emt 0:00:06]} 2. Nf3 {[%emt 0:00:05]} d6 {[%emt 0:00:16]} 3. d4 {[%emt 0:00:06]} cxd4 {[%emt 0:00:09]} 4. Nxd4 {[%emt 0:00:04]} Nf6 {[%emt 0:00:13]} 5. Nc3 {[%emt 0:00:05]} a6 {[%emt 0:00:09]} 6. Qd3 {[%emt 0:00:22]} e5 {[%emt 0:02:43]} 7. Nf5 {[%emt 0:00:08]} Bxf5 {[%emt 0:06:54]} 8. exf5 {[%emt 0:00:09]} d5 {[%emt 0:00:15]} 9. Bg5 {[%emt 0:00:30]} d4 {[%emt 0:01:34]} 10. Bxf6 {[%emt 0:01:25]} Qxf6 {[%emt 0:12:10]} 11. Ne4 {[%emt 0:00:22]} Qb6 {[%emt 0:00:18]} 12. O-O-O {[%emt 0:10:42]} Nd7 {[%emt 0:02:42]} 13. Qf3 {[%emt 0:02:31]} Nf6 {[%emt 0:11:16]} 14. Nxf6+ {[%emt 0:10:32]} gxf6 {[%emt 0:01:30]} 15. Bc4 {[%emt 0:00:28]} Qc7 {[%emt 0:03:33]} 16. Bb3 {[%emt 0:08:15]} h5 {[%emt 0:04:01]} 17. Rhe1 {[%emt 0:03:16]} O-O-O {[%emt 0:03:29]} 18. Re4 {[%emt 0:02:42]} Kb8 {[%emt 0:03:12]} 19. Kb1 {[%emt 0:03:28]} Bd6 {[%emt 0:06:50]} 20. Rh4 {[%emt 0:05:52]} Rdg8 {[%emt 0:00:33]} 21. Bd5 {[%emt 0:03:09]} Rc8 {[%emt 0:06:35]} 22. Be4 {[%emt 0:02:13]} Bb4 {[%emt 0:04:29]} 23. Rxh5 {[%emt 0:13:36]} Qb6 {[%emt 0:07:05]} 24. Rxh8 {[%emt 0:06:19]} Rxh8 {[%emt 0:00:02]} 25. Qb3 {[%emt 0:06:42]} Rxh2 {[%emt 0:00:23]} 26. Qxf7 {[%emt 0:04:40]} Rh4 {[%emt 0:00:49]} 27. f3 {[%emt 0:01:41]} a5 {[%emt 0:01:26]} 28. Ka1 {[%emt 0:03:12]} Rh2 {[%emt 0:01:54]} 29. a3 {[%emt 0:00:44]} Bc5 {[%emt 0:02:50]} 30. Rd3 {[%emt 0:01:54]} a4 {[%emt 0:03:19]} 31. Qe8+ {[%emt 0:00:34]} Ka7 {[%emt 0:00:55]} 32. Qxa4+ {[%emt 0:01:19]} Qa6 {[%emt 0:00:02]} 33. Qd7 {[%emt 0:01:37]} Rxg2 {[%emt 0:01:31]} 34. Rb3 {[%emt 0:00:34]} Bb6 {[%emt 0:01:38]} 35. Rb4 {[%emt 0:00:40]} Rg8 {[%emt 0:03:01]} 36. Ra4 {[%emt 0:00:31]} Ba5 {[%emt 0:00:06]} 37. Rxa5 {[%emt 0:00:07]} 1-0

[Event "Summer Prague Open-A 2024"]
[Site "Prague"]
[Date "2024.08.04"]
[Round "4.21"]
[White "Golenia, Wojciech"]
[Black "Yedid, Lior"]
[Result "1-0"]
[Annotator "RC"]
[ECO "B01"]
[WhiteElo "2212"]
[BlackElo "1951"]
[PlyCount "119"]
[EventDate "2024.08.02"]
[EventType "swiss"]
[EventCountry "CZE"]
[SourceTitle "playchess.com"]
[Source "ChessBase"]
[SourceQuality "1"]
[TimeControl "40/5400+30:1800+30"]

1. e4 {[%emt 0:07:24]} d5 {[%emt 0:00:26]} 2. exd5 {[%emt 0:00:19]} Qxd5 {[%emt 0:00:08]} 3. d4 {[%emt 0:01:04]} Nc6 {[%emt 0:00:12]} 4. Nf3 {[%emt 0:02:08]} Bg4 {[%emt 0:00:06]} 5. Be2 {[%emt 0:01:03]} e6 {[%emt 0:00:47]} 6. Be3 {[%emt 0:04:14]} Nge7 {[%emt 0:02:55]} 7. h3 {[%emt 0:03:08]} Bh5 {[%emt 0:02:16]} 8. c3 {[%emt 0:02:08]} Bg6 {[%emt 0:00:21]} 9. Nbd2 {[%emt 0:01:01]} Nf5 {[%emt 0:00:55]} 10. Bf4 {[%emt 0:01:56]} Qd7 {[%emt 0:03:11]} 11. Nc4 {[%emt 0:03:04]} Bd6 {[%emt 0:06:16]} 12. Nxd6+ {[%emt 0:01:00]} Nxd6 {[%emt 0:01:36]} 13. O-O {[%emt 0:01:27]} h6 {[%emt 0:00:34]} 14. Re1 {[%emt 0:00:52]} Rd8 {[%emt 0:01:02]} 15. d5 {[%emt 0:08:10]} exd5 {[%emt 0:03:03]} 16. Bb5+ {[%emt 0:04:03]} Kf8 {[%emt 0:02:45]} 17. Qxd5 {[%emt 0:03:28]} Nxb5 {[%emt 0:00:45]} 18. Qxb5 {[%emt 0:00:17]} Qc8 {[%emt 0:00:11]} 19. Ne5 {[%emt 0:07:47]} Nxe5 {[%emt 0:00:44]} 20. Rxe5 {[%emt 0:04:05]} c6 {[%emt 0:02:03]} 21. Qc5+ {[%emt 0:01:24]} Kg8 {[%emt 0:01:06]} 22. Qxa7 {[%emt 0:00:45]} Kh7 {[%emt 0:01:02]} 23. Rae1 {[%emt 0:01:20]} Rhe8 {[%emt 0:00:41]} 24. Rxe8 {[%emt 0:07:14]} Rxe8 {[%emt 0:00:03]} 25. Be3 {[%emt 0:03:06]} Bf5 {[%emt 0:02:25]} 26. Rd1 {[%emt 0:01:25]} Bxh3 {[%emt 0:02:55]} 27. gxh3 {[%emt 0:05:19]} Qxh3 {[%emt 0:00:03]} 28. Qd4 {[%emt 0:02:30]} Re6 {[%emt 0:00:43]} 29. Bf4 {[%emt 0:00:58]} Rg6+ {[%emt 0:03:53]} 30. Bg3 {[%emt 0:00:01]} h5 {[%emt 0:00:24]} 31. Qe4 {[%emt 0:03:54]} h4 {[%emt 0:01:32]} 32. Qg2 {[%emt 0:00:35]} Qxg2+ {[%emt 0:04:21]} 33. Kxg2 {[%emt 0:00:02]} hxg3 {[%emt 0:00:01]} 34. fxg3 {[%emt 0:00:33]} Re6 {[%emt 0:00:11]} 35. Rh1+ {[%emt 0:01:03]} Kg6 {[%emt 0:00:08]} 36. Kf3 {[%emt 0:00:02]} Rf6+ {[%emt 0:00:52]} 37. Ke3 {[%emt 0:03:11]} Re6+ {[%emt 0:00:18]} 38. Kf3 {[%emt 0:00:10]} Rf6+ {[%emt 0:00:05]} 39. Ke2 {[%emt 0:00:25]} Re6+ {[%emt 0:00:58]} 40. Kf2 {[%emt 0:00:02]} Rf6+ {[%emt 0:00:35]} 41. Ke3 {[%emt 0:35:30]} Re6+ {[%emt 0:30:16]} 42. Kd3 {[%emt 0:05:47]} Rd6+ {[%emt 0:00:33]} 43. Kc4 {[%emt 0:02:28]} Kg5 {[%emt 0:02:23]} 44. a4 {[%emt 0:04:16]} Rd5 {[%emt 0:01:22]} 45. Rh7 {[%emt 0:00:00]} Kg6 {[%emt 0:00:00]} 46. Rh8 {[%emt 0:00:00]} b5+ {[%emt 0:00:00]} 47. axb5 {[%emt 0:00:00]} Rxb5 {[%emt 0:00:00]} 48. b4 {[%emt 0:00:00]} Rg5 {[%emt 0:00:00]} 49. Rc8 {[%emt 0:00:00]} Rg4+ {[%emt 0:00:00]} 50. Kc5 {[%emt 0:00:00]} Rxg3 {[%emt 0:00:00]} 51. c4 {[%emt 0:00:00]} f5 {[%emt 0:00:00]} 52. Kxc6 {[%emt 0:00:00]} Rg4 {[%emt 0:00:00]} 53. Kd5 {[%emt 0:00:00]} f4 {[%emt 0:00:00]} 54. b5 {[%emt 0:00:00]} Kg5 {[%emt 0:00:00]} 55. b6 {[%emt 0:00:00]} f3 {[%emt 0:00:00]} 56. Rf8 {[%emt 0:00:00]} Rf4 {[%emt 0:00:00]} 57. Rxf4 {[%emt 0:00:00]} Kxf4 {[%emt 0:00:00]} 58. b7 {[%emt 0:00:00]} g5 {[%emt 0:00:00]} 59. b8=Q+ {[%emt 0:00:00]} Kg4 {[%emt 0:00:00]} 60. Qh2 1-0

[Event "Summer Prague Open-A 2024"]
[Site "Prague"]
[Date "2024.08.04"]
[Round "4.22"]
[White "Ringuet, Cyril"]
[Black "Jun, Rudolf"]
[Result "0-1"]
[Annotator "RC"]
[ECO "B30"]
[WhiteElo "2015"]
[BlackElo "2198"]
[PlyCount "84"]
[EventDate "2024.08.02"]
[EventType "swiss"]
[EventCountry "CZE"]
[SourceTitle "playchess.com"]
[Source "ChessBase"]
[SourceQuality "1"]
[TimeControl "40/5400+30:1800+30"]

1. e4 {[%emt 0:00:20]} c5 {[%emt 0:00:14]} 2. Nf3 {[%emt 0:00:07]} Nc6 {[%emt 0:00:24]} 3. Bb5 {[%emt 0:00:07]} Qc7 {[%emt 0:01:12]} 4. O-O {[%emt 0:02:29]} a6 {[%emt 0:04:03]} 5. Bxc6 {[%emt 0:00:31]} dxc6 {[%emt 0:00:52]} 6. c3 {[%emt 0:12:43]} Bg4 {[%emt 0:02:34]} 7. d4 {[%emt 0:00:49]} cxd4 {[%emt 0:00:51]} 8. cxd4 {[%emt 0:00:06]} g6 {[%emt 0:00:29]} 9. Nbd2 {[%emt 0:04:39]} Bg7 {[%emt 0:00:24]} 10. h3 {[%emt 0:00:06]} Bxf3 {[%emt 0:02:40]} 11. Nxf3 {[%emt 0:01:25]} Nf6 {[%emt 0:00:10]} 12. Qe2 {[%emt 0:03:39]} O-O {[%emt 0:02:24]} 13. e5 {[%emt 0:13:07]} Nd5 {[%emt 0:00:05]} 14. e6 {[%emt 0:00:04]} f5 {[%emt 0:01:43]} 15. Re1 {[%emt 0:11:29]} Rad8 {[%emt 0:04:50]} 16. Ng5 {[%emt 0:20:31]} Qd6 {[%emt 0:15:40]} 17. Nf7 {[%emt 0:00:41]} Rxf7 {[%emt 0:02:03]} 18. exf7+ {[%emt 0:00:09]} Kxf7 {[%emt 0:00:05]} 19. Bg5 {[%emt 0:05:47]} Bxd4 {[%emt 0:03:22]} 20. Qc4 {[%emt 0:00:51]} Bf6 {[%emt 0:02:11]} 21. Bxf6 {[%emt 0:00:39]} Qxf6 {[%emt 0:00:11]} 22. Qb3 {[%emt 0:00:40]} Rd7 {[%emt 0:00:34]} 23. Rad1 {[%emt 0:00:39]} e5 {[%emt 0:01:10]} 24. Qc4 {[%emt 0:03:18]} Kg7 {[%emt 0:03:15]} 25. a4 {[%emt 0:02:20]} Re7 {[%emt 0:05:05]} 26. b4 {[%emt 0:01:18]} e4 {[%emt 0:05:54]} 27. b5 {[%emt 0:02:36]} axb5 {[%emt 0:09:36]} 28. axb5 {[%emt 0:00:05]} Nc3 {[%emt 0:00:23]} 29. Rd8 {[%emt 0:01:16]} Nxb5 {[%emt 0:02:49]} 30. Red1 {[%emt 0:05:13]} Nc7 {[%emt 0:05:56]} 31. R1d6 {[%emt 0:03:26]} Qa1+ {[%emt 0:03:18]} 32. Kh2 {[%emt 0:00:04]} Qe5+ {[%emt 0:00:31]} 33. Kg1 {[%emt 0:02:20]} Nd5 {[%emt 0:00:33]} 34. Qc5 {[%emt 0:01:06]} Nf6 {[%emt 0:11:20]} 35. Qc4 {[%emt 0:01:33]} f4 {[%emt 0:00:58]} 36. Qe2 {[%emt 0:01:17]} e3 {[%emt 0:01:55]} 37. f3 {[%emt 0:00:11]} Nd5 {[%emt 0:00:52]} 38. Kh2 {[%emt 0:00:33]} Kh6 {[%emt 0:04:52]} 39. Qe1 {[%emt 0:00:30]} Qg5 {[%emt 0:00:26]} 40. Kh1 {[%emt 0:01:03]} e2 {[%emt 0:03:03]} 41. Rxd5 {[%emt 0:06:46]} cxd5 {[%emt 0:01:28]} 42. Rxd5 {[%emt 0:00:06]} Qg3 {[%emt 0:00:12]} 0-1

[Event "Summer Prague Open-A 2024"]
[Site "Prague"]
[Date "2024.08.04"]
[Round "4.23"]
[White "Stocek, Martin"]
[Black "Radovic, Stefan"]
[Result "1/2-1/2"]
[Annotator "RC"]
[ECO "D31"]
[WhiteElo "2176"]
[BlackElo "1967"]
[PlyCount "123"]
[EventDate "2024.08.02"]
[EventType "swiss"]
[EventCountry "CZE"]
[SourceTitle "playchess.com"]
[Source "ChessBase"]
[SourceQuality "1"]
[TimeControl "40/5400+30:1800+30"]

1. d4 {[%emt 0:00:15]} d5 {[%emt 0:00:09]} 2. c4 {[%emt 0:00:04]} e6 {[%emt 0:00:05]} 3. Nc3 {[%emt 0:00:04]} Bb4 {[%emt 0:00:11]} 4. Qa4+ {[%emt 0:01:03]} Nc6 {[%emt 0:00:05]} 5. e3 {[%emt 0:00:10]} Nf6 {[%emt 0:01:22]} 6. Bd2 {[%emt 0:00:25]} O-O {[%emt 0:03:11]} 7. a3 {[%emt 0:02:37]} Bxc3 {[%emt 0:04:38]} 8. Bxc3 {[%emt 0:00:06]} Ne4 {[%emt 0:04:30]} 9. Qc2 {[%emt 0:03:59]} Nxc3 {[%emt 0:24:25]} 10. Qxc3 {[%emt 0:00:06]} Ne7 {[%emt 0:05:19]} 11. Nf3 {[%emt 0:01:56]} b6 {[%emt 0:03:05]} 12. Bd3 {[%emt 0:27:33]} dxc4 {[%emt 0:04:24]} 13. Qxc4 {[%emt 0:00:18]} Bb7 {[%emt 0:01:48]} 14. b4 {[%emt 0:17:19]} Rc8 {[%emt 0:17:33]} 15. O-O {[%emt 0:02:38]} Bxf3 {[%emt 0:02:39]} 16. gxf3 {[%emt 0:01:32]} Nd5 {[%emt 0:00:47]} 17. f4 {[%emt 0:13:59]} f5 {[%emt 0:01:44]} 18. Kh1 {[%emt 0:13:18]} Qh4 {[%emt 0:00:39]} 19. Ra2 {[%emt 0:00:51]} Rf6 {[%emt 0:04:37]} 20. Rg1 {[%emt 0:00:02]} Rcf8 {[%emt 0:04:58]} 21. Qc6 {[%emt 0:02:09]} Kh8 {[%emt 0:06:26]} 22. Rg2 {[%emt 0:07:59]} Qh6 {[%emt 0:05:46]} 23. Be2 {[%emt 0:01:28]} Ne7 {[%emt 0:02:14]} 24. Qd7 {[%emt 0:01:38]} Ng6 {[%emt 0:00:20]} 25. Ra1 {[%emt 0:00:16]} Nh4 {[%emt 0:00:52]} 26. Rg3 {[%emt 0:00:22]} R6f7 {[%emt 0:00:37]} 27. Qc6 {[%emt 0:00:11]} Qf6 {[%emt 0:00:46]} 28. Rag1 {[%emt 0:00:17]} Rd8 {[%emt 0:00:27]} 29. h3 {[%emt 0:00:52]} Rfd7 {[%emt 0:00:48]} 30. Bc4 {[%emt 0:00:50]} Re7 {[%emt 0:00:12]} 31. b5 {[%emt 0:00:15]} Ng6 {[%emt 0:00:13]} 32. Be2 {[%emt 0:00:39]} Red7 {[%emt 0:00:19]} 33. Qg2 {[%emt 0:01:00]} Nh4 {[%emt 0:00:45]} 34. Qf1 {[%emt 0:00:18]} Ng6 {[%emt 0:00:20]} 35. Bf3 {[%emt 0:00:27]} Ne7 {[%emt 0:00:36]} 36. Qg2 {[%emt 0:00:55]} Nd5 {[%emt 0:00:45]} 37. Bxd5 {[%emt 0:00:20]} exd5 {[%emt 0:00:07]} 38. Rc1 {[%emt 0:00:10]} Qe7 {[%emt 0:00:36]} 39. Rc3 {[%emt 0:00:33]} a6 {[%emt 0:00:34]} 40. bxa6 {[%emt 0:00:48]} Ra8 {[%emt 0:00:24]} 41. Qf1 {[%emt 0:02:20]} c5 {[%emt 0:04:56]} 42. dxc5 {[%emt 0:03:07]} bxc5 {[%emt 0:00:07]} 43. Rb3 {[%emt 0:19:36]} Qd6 {[%emt 0:19:21]} 44. Qb1 {[%emt 0:04:07]} Rxa6 {[%emt 0:01:52]} 45. Qxf5 {[%emt 0:00:36]} Ra8 {[%emt 0:01:14]} 46. Rg1 {[%emt 0:01:29]} c4 {[%emt 0:00:20]} 47. Rc3 {[%emt 0:00:12]} g6 {[%emt 0:01:18]} 48. Qe5+ {[%emt 0:01:16]} Qxe5 {[%emt 0:01:57]} 49. fxe5 {[%emt 0:00:01]} Rb7 {[%emt 0:00:28]} 50. Rd1 {[%emt 0:00:54]} Ra5 {[%emt 0:00:39]} 51. Kg2 {[%emt 0:00:23]} Kg7 {[%emt 0:00:16]} 52. f4 {[%emt 0:01:21]} Rb3 {[%emt 0:01:45]} 53. Rxb3 {[%emt 0:00:53]} cxb3 {[%emt 0:00:04]} 54. a4 {[%emt 0:00:36]} Rxa4 {[%emt 0:00:21]} 55. Rxd5 {[%emt 0:00:28]} Rb4 {[%emt 0:00:35]} 56. Rd7+ {[%emt 0:00:25]} Kf8 {[%emt 0:00:23]} 57. Rd1 {[%emt 0:00:06]} b2 {[%emt 0:00:05]} 58. Rb1 {[%emt 0:00:04]} Ke7 {[%emt 0:00:31]} 59. Kf3 {[%emt 0:00:02]} Ke6 {[%emt 0:00:45]} 60. Ke2 {[%emt 0:01:46]} g5 {[%emt 0:01:28]} 61. fxg5 {[%emt 0:00:48]} Kxe5 {[%emt 0:00:19]} 62. Kf3 {[%emt 0:00:34]} 1/2-1/2